bitfinex/quotes_SOLUSD_20241118
["timestamp","ask_amount","ask_price","bid_price","bid_amount"]
[1731946244588,24.07758048,241.38,241.3,23.73292586]
[1731946244793,28.22048048,241.38,241.3,23.73292586]
[1731946245083,0.34465462,241.31,241.24,23.73292586]
[1731946245305,0.21916462,241.29,241.22,23.73292586]
[1731946245498,0.21916462,241.29,241.24,23.73292586]
[1731946245666,0.09367462,241.29,241.24,23.73292586]
[1731946245967,0.12549,241.3,241.24,23.73292586]
[1731946246363,0.12549,241.29,241.22,23.73292586]
[1731946246583,0.12549,241.29,241.22,27.87832586]
[1731946247473,0.21916462,241.3,241.24,23.73292586]
[1731946247978,0.09367462,241.3,241.22,27.87832586]
[1731946248362,0.12549,241.29,241.22,27.87832586]
[1731946248574,0.34465462,241.26,241.18,23.73292586]
[1731946248791,24.07758048,241.26,241.18,23.73292586]
[1731946249597,28.22258048,241.26,241.18,23.73292586]
[1731946249896,28.22258048,241.26,241.18,27.87902586]
[1731946250493,24.07758048,241.26,241.18,27.87902586]
[1731946251073,23.73292586,241.26,241.18,27.87902586]
[1731946251269,23.73292586,241.3,241.2,23.73292586]
[1731946251767,27.87712586,241.3,241.21,4.1457]
[1731946251970,0.09367462,241.29,241.24,23.73292586]
[1731946252171,27.87642586,241.34,241.24,23.73292586]
[1731946252569,0.09367462,241.31,241.24,23.73292586]
[1731946253077,0.09367462,241.33,241.24,23.73292586]
[1731946253396,4.36296462,241.33,241.25,4.145]
[1731946253903,0.09367462,241.31,241.25,4.145]
[1731946254497,0.21916462,241.31,241.25,4.145]
[1731946254792,0.21916462,241.29,241.22,23.73292586]
[1731946254975,0.21916462,241.29,241.22,27.87842586]
[1731946255689,0.21916462,241.29,241.12,1.0]
[1731946255690,0.21916462,241.27,241.2,23.73292586]
[1731946256282,0.09367462,241.27,241.21,4.1457]
[1731946256494,0.21916462,241.27,241.21,4.1457]
[1731946258176,0.21916462,241.29,241.22,23.73292586]
[1731946258386,0.21916462,241.27,241.22,23.73292586]
[1731946258590,0.09367462,241.27,241.22,23.73292586]
[1731946258809,0.21916462,241.27,241.22,23.73292586]
[1731946259376,0.12549,241.27,241.22,23.73292586]
[1731946259575,0.12549,241.27,241.22,27.87832586]
[1731946259793,23.73292586,241.35,241.26,23.73292586]
[1731946260281,23.73292586,241.35,241.28,23.73292586]
[1731946260485,13.1994,241.39,241.32,23.73292586]
[1731946260691,27.87532586,241.41,241.34,23.73292586]
[1731946260897,27.87532586,241.41,241.32,23.73292586]
[1731946261097,23.73292586,241.39,241.3,23.73292586]
[1731946261297,23.73292586,241.39,241.32,23.73292586]
[1731946261489,23.73292586,241.35,241.27,23.73292586]
[1731946261688,0.09367462,241.34,241.27,23.73292586]
[1731946262088,0.21916462,241.34,241.27,23.73292586]
[1731946262479,0.09367462,241.32,241.27,23.73292586]
[1731946262678,0.21916462,241.32,241.27,27.87742586]
[1731946263689,23.73292586,241.39,241.31,23.73292586]
[1731946263994,4.1419,241.43,241.29,23.73292586]
[1731946263995,23.73292586,241.38,241.29,23.73292586]
[1731946264197,23.73292586,241.42,241.35,23.73292586]
[1731946264405,4.1419,241.43,241.35,23.73292586]
[1731946264799,4.1419,241.43,241.35,27.87622586]
[1731946265779,4.23587462,241.42,241.35,27.87622586]
[1731946266189,23.73292586,241.44,241.37,23.73292586]
[1731946266405,16.8819,241.56,241.43,23.73292586]
[1731946266583,40.61482586,241.56,241.47,23.73292586]
[1731946266788,40.61482586,241.56,241.36,31.1881]
[1731946266789,23.73292586,241.52,241.45,23.73292586]
[1731946266991,23.73292586,241.5,241.42,23.73292586]
[1731946267384,23.73292586,241.54,241.46,23.73292586]
[1731946267593,16.8819,241.56,241.46,23.73292586]
[1731946267877,4.1401,241.54,241.46,23.73292586]
[1731946268482,23.73292586,241.53,241.46,23.73292586]
[1731946269090,23.73292586,241.53,241.46,27.87422586]
[1731946269292,23.73292586,241.57,241.48,23.73292586]
[1731946269512,23.73292586,241.59,241.5,23.73292586]
[1731946269905,4.1394,241.58,241.5,23.73292586]
[1731946270204,23.73292586,241.57,241.5,23.73292586]
[1731946270510,23.73292586,241.59,241.51,4.1406]
[1731946270679,23.73292586,241.59,241.52,23.73292586]
[1731946270874,4.1382,241.65,241.52,23.73292586]
[1731946271182,4.1382,241.65,241.56,23.73292586]
[1731946271183,27.87112586,241.65,241.56,23.73292586]
[1731946271502,47.46585172,241.57,241.39,12.0471]
[1731946271725,23.73292586,241.51,241.43,23.73292586]
[1731946271999,23.73292586,241.55,241.47,23.73292586]
[1731946273079,0.21916462,241.54,241.47,23.73292586]
[1731946273279,0.09367462,241.5,241.44,23.73292586]
[1731946273488,0.09367462,241.48,241.42,23.73292586]
[1731946273888,0.09367462,241.48,241.44,23.73292586]
[1731946274082,23.73292586,241.53,241.44,23.73292586]
[1731946274604,23.73292586,241.55,241.46,23.73292586]
[1731946274811,0.09367462,241.54,241.46,23.73292586]
[1731946275690,4.48475462,241.54,241.46,23.73292586]
[1731946276310,0.12549,241.52,241.46,23.73292586]
[1731946276488,23.82660048,241.51,241.42,23.73292586]
[1731946276705,0.21916462,241.46,241.38,36.5814]
[1731946276993,0.12549,241.42,241.35,23.73292586]
[1731946277304,23.85841586,241.43,241.27,0.5]
[1731946277305,0.12549,241.38,241.29,27.87712586]
[1731946277510,23.73292586,241.37,241.29,27.87712586]
[1731946277684,23.73292586,241.3,241.22,23.73292586]
[1731946277883,0.25098,241.27,241.2,23.73292586]
[1731946278611,0.12549,241.29,241.24,23.73292586]
[1731946278909,0.12549,241.29,241.22,23.73292586]
[1731946279308,0.12549,241.29,241.22,27.87842586]
[1731946279512,0.12549,241.31,241.24,23.73292586]
[1731946279682,23.73292586,241.32,241.24,23.73292586]
[1731946279888,23.73292586,241.34,241.26,23.73292586]
[1731946280288,38.57746923,241.34,241.26,38.57746923]
[1731946280821,38.57746923,241.4,241.32,38.57746923]
[1731946281109,38.57746923,241.44,241.36,38.57746923]
[1731946281517,38.57746923,241.4,241.34,4.1434]
[1731946281690,38.57746923,241.4,241.32,38.57746923]
[1731946281885,38.57746923,241.38,241.3,38.57746923]
[1731946282109,38.57746923,241.4,241.32,38.57746923]
[1731946282314,38.57746923,241.42,241.34,38.57746923]
[1731946282813,0.09367462,241.41,241.34,38.57746923]
[1731946283111,38.57746923,241.42,241.35,4.1433]
[1731946283313,0.09367462,241.41,241.35,4.1433]
[1731946283519,38.57746923,241.42,241.35,4.1433]
[1731946283813,38.57746923,241.4,241.3,38.57746923]
[1731946284017,14.4939,241.48,241.3,38.57746923]
[1731946284018,0.09367462,241.37,241.3,38.57746923]
[1731946284903,0.09367462,241.39,241.31,4.144]
[1731946285110,38.57746923,241.4,241.32,38.57746923]
[1731946285693,0.09367462,241.39,241.32,38.57746923]
[1731946286303,38.67114385,241.42,241.34,38.57746923]
[1731946287114,38.67114385,241.42,241.28,44.3958]
[1731946287115,38.57746923,241.51,241.41,38.57746923]
[1731946287702,0.09367462,241.42,241.29,4.1443]
[1731946287910,0.09367462,241.38,241.3,38.57746923]
[1731946288123,38.57746923,241.43,241.34,38.57746923]
[1731946288311,38.57746923,241.45,241.36,38.57746923]
[1731946288501,38.57746923,241.49,241.4,38.57746923]
[1731946288699,38.57746923,241.51,241.44,38.57746923]
[1731946288899,4.1401,241.54,241.46,38.57746923]
[1731946288900,42.71756923,241.54,241.46,38.57746923]
[1731946289216,0.09367462,241.49,241.42,38.57746923]
[1731946289416,0.09367462,241.49,241.4,38.57746923]
[1731946289720,0.09367462,241.49,241.42,38.57746923]
[1731946289897,38.57746923,241.5,241.42,38.57746923]
[1731946290400,38.57746923,241.51,241.43,54.96866923]
[1731946290802,38.57746923,241.51,241.43,42.71936923]
[1731946290803,0.09367462,241.5,241.43,42.71936923]
[1731946291321,38.57746923,241.53,241.45,38.57746923]
[1731946291624,43.3963,241.62,241.49,38.57746923]
[1731946291625,38.57746923,241.57,241.49,38.57746923]
[1731946291914,0.09367462,241.56,241.49,38.57746923]
[1731946292116,0.09367462,241.54,241.47,38.57746923]
[1731946292914,0.09367462,241.54,241.48,4.1411]
[1731946293500,38.57746923,241.59,241.49,38.57746923]
[1731946293694,38.57746923,241.59,241.51,38.57746923]
[1731946293924,38.57746923,241.61,241.53,38.57746923]
[1731946294426,38.57746923,241.59,241.54,23.776884]
[1731946294609,38.57746923,241.59,241.52,23.776884]
[1731946294807,38.57746923,241.61,241.53,38.57746923]
[1731946295001,38.57746923,241.61,241.54,23.776884]
[1731946295223,4.1382,241.65,241.57,38.57746923]
[1731946295224,42.71566923,241.65,241.57,38.57746923]
[1731946295448,38.57746923,241.61,241.54,23.776884]
[1731946295906,0.09367462,241.6,241.54,23.776884]
[1731946296300,38.57746923,241.59,241.53,23.776884]
[1731946296925,4.139,241.61,241.53,66.49445323]
[1731946297107,0.09367462,241.6,241.53,66.49445323]
[1731946297508,38.57746923,241.59,241.53,27.916984]
[1731946298425,38.67114385,241.61,241.53,27.916984]
[1731946299204,38.57746923,241.61,241.53,66.49445323]
[1731946299628,0.09367462,241.56,241.49,38.57746923]
[1731946299816,38.57746923,241.53,241.45,38.57746923]
[1731946300225,23.70559206,241.53,241.44,23.70559206]
[1731946300935,23.70559206,241.53,241.46,23.70559206]
[1731946301309,0.09367462,241.54,241.47,23.776884]
[1731946301933,23.70559206,241.53,241.47,23.776884]
[1731946302116,0.09367462,241.54,241.47,27.917984]
[1731946302416,23.70559206,241.55,241.46,4.1413]
[1731946302417,23.70559206,241.53,241.46,4.1413]
[1731946302627,0.09367462,241.5,241.42,23.70559206]
[1731946303505,0.09367462,241.5,241.43,23.776884]
[1731946304134,27.84599206,241.53,241.44,23.70559206]
[1731946304432,27.84599206,241.53,241.45,23.776884]
[1731946305428,27.84599206,241.53,241.45,27.918484]
[1731946305617,23.70559206,241.49,241.45,23.776884]
[1731946305829,23.70559206,241.49,241.43,23.776884]
[1731946306039,0.09367462,241.5,241.43,23.776884]
[1731946306620,23.70559206,241.53,241.46,23.70559206]
[1731946306823,23.70559206,241.53,241.45,23.776884]
[1731946307132,23.70559206,241.47,241.38,27.84829206]
[1731946307736,23.70559206,241.47,241.4,23.70559206]
[1731946308115,23.70559206,241.53,241.44,23.70559206]
[1731946308316,23.70559206,241.53,241.38,4.1427]
[1731946308317,23.70559206,241.53,241.46,23.70559206]
[1731946308632,27.84549206,241.55,241.47,23.776884]
[1731946308833,0.09367462,241.54,241.47,23.776884]
[1731946309043,4.1398,241.56,241.49,23.70559206]
[1731946309214,23.70559206,241.57,241.5,23.776884]
[1731946309542,23.70559206,241.53,241.43,23.70559206]
[1731946309745,23.70559206,241.51,241.44,23.776884]
[1731946310534,23.70559206,241.53,241.44,23.776884]
[1731946310746,23.70559206,241.53,241.46,23.776884]
[1731946311312,27.84589206,241.53,241.46,23.776884]
[1731946312028,23.70559206,241.53,241.46,23.776884]
[1731946312213,23.70559206,241.55,241.48,23.70559206]
[1731946312413,23.70559206,241.57,241.51,23.776884]
[1731946312815,27.84519206,241.57,241.51,23.776884]
[1731946313240,27.84519206,241.57,241.2,23.70559206]
[1731946313241,23.70559206,241.54,241.46,4.1413]
[1731946313451,23.70559206,241.54,241.47,23.776884]
[1731946313919,23.70559206,241.56,241.49,23.776884]
[1731946314121,23.70559206,241.53,241.47,23.776884]
[1731946314332,23.70559206,241.55,241.47,23.776884]
[1731946314530,23.70559206,241.55,241.49,23.776884]
[1731946314742,0.09367462,241.56,241.5,4.1407]
[1731946314919,0.09367462,241.56,241.51,23.776884]
[1731946315319,23.70559206,241.55,241.5,23.776884]
[1731946316032,10.3467,241.63,241.5,51.62317606]
[1731946316033,23.70559206,241.59,241.5,51.62317606]
[1731946316420,23.70559206,241.55,241.48,27.84659206]
[1731946316627,23.70559206,241.55,241.46,23.70559206]
[1731946317719,23.70559206,241.55,241.47,23.776884]
[1731946318319,23.70559206,241.57,241.48,23.70559206]
[1731946318533,23.70559206,241.6,241.53,23.776884]
[1731946318736,0.09367462,241.59,241.53,23.776884]
[1731946319837,23.70559206,241.58,241.5,23.70559206]
[1731946320043,23.70559206,241.56,241.49,23.776884]
[1731946320341,0.09367462,241.55,241.48,23.70559206]
[1731946320565,10.3463,241.64,241.52,23.70559206]
[1731946320566,23.70559206,241.6,241.52,23.70559206]
[1731946320922,0.09367462,241.57,241.5,23.70559206]
[1731946321124,23.70559206,241.56,241.43,0.12549]
[1731946321352,23.70559206,241.54,241.46,23.70559206]
[1731946321532,0.09367462,241.53,241.47,4.1413]
[1731946322048,23.70559206,241.49,241.4,23.70559206]
[1731946322222,23.70559206,241.49,241.35,38.58375871]
[1731946322223,23.70559206,241.47,241.38,23.70559206]
[1731946323427,23.70559206,241.47,241.39,27.919484]
[1731946323928,0.09367462,241.47,241.4,23.70559206]
[1731946324127,4.1411,241.48,241.39,27.919484]
[1731946324128,23.70559206,241.51,241.44,23.70559206]
[1731946324344,4.1405,241.52,241.45,23.776884]
[1731946324530,0.09367462,241.51,241.45,23.776884]
[1731946325044,23.79926668,241.51,241.43,23.776884]
[1731946325227,23.70559206,241.49,241.4,23.70559206]
[1731946325548,23.70559206,241.49,241.41,23.776884]
[1731946325929,0.09367462,241.46,241.38,23.70559206]
[1731946326946,23.70559206,241.47,241.3,38.58375871]
[1731946326947,0.09367462,241.44,241.3,38.58375871]
[1731946327146,0.09367462,241.42,241.34,23.70559206]
[1731946327327,0.09367462,241.4,241.32,23.70559206]
[1731946327729,0.09367462,241.38,241.3,23.70559206]
[1731946327934,0.09367462,241.36,241.29,4.1442]
[1731946328134,23.70559206,241.41,241.32,23.70559206]
[1731946328657,23.70559206,241.43,241.34,23.70559206]
[1731946328842,13.0783,241.5,241.42,23.70559206]
[1731946329157,4.141,241.49,241.47,23.70559206]
[1731946329340,0.09367462,241.47,241.45,23.70559206]
[1731946329550,30.0,241.48,241.45,23.70559206]
[1731946329855,4.1402,241.53,241.47,23.70559206]
[1731946330039,4.1402,241.53,241.49,23.70559206]
[1731946330364,0.09367462,241.52,241.49,23.70559206]
[1731946330531,2.28339415,241.55,241.48,23.70559206]
[1731946330739,23.70559206,241.57,241.48,23.70559206]
[1731946330932,27.84519206,241.57,241.48,23.70559206]
[1731946331545,27.84519206,241.57,241.48,27.84659206]
[1731946331743,4.1396,241.57,241.5,23.70559206]
[1731946332035,4.1393,241.59,241.52,23.70559206]
[1731946332432,4.1393,241.59,241.48,4.141]
[1731946332433,0.09367462,241.58,241.5,23.70559206]
[1731946332943,27.84489206,241.59,241.51,23.776884]
[1731946333149,4.1393,241.59,241.54,23.70559206]
[1731946333866,32.4447,241.65,241.54,23.70559206]
[1731946333867,23.70559206,241.63,241.54,23.70559206]
[1731946334039,23.70559206,241.63,241.56,23.70559206]
[1731946334235,23.70559206,241.65,241.58,23.70559206]
[1731946334558,42.8547,241.71,241.62,23.70559206]
[1731946334559,27.84289206,241.7,241.62,23.70559206]
[1731946334853,12.7186,241.73,241.67,23.70559206]
[1731946335058,23.70559206,241.77,241.69,23.70559206]
[1731946335354,45.2302,241.79,241.57,43.8118]
[1731946335355,4.1363,241.76,241.71,23.70559206]
[1731946335559,0.09367462,241.77,241.71,23.70559206]
[1731946335765,0.09367462,241.77,241.69,23.70559206]
[1731946335766,23.79926668,241.77,241.69,23.70559206]
[1731946336056,23.79926668,241.77,241.67,23.70559206]
[1731946336253,4.136,241.78,241.69,23.70559206]
[1731946336461,4.1357,241.8,241.73,23.70559206]
[1731946337340,4.1357,241.8,241.75,23.70559206]
[1731946337844,4.1349,241.84,241.79,23.70559206]
[1731946339072,23.70559206,241.83,241.75,23.70559206]
[1731946339352,0.09367462,241.82,241.75,23.70559206]
[1731946339944,23.79926668,241.85,241.75,23.70559206]
[1731946340348,0.09367462,241.83,241.75,23.70559206]
[1731946340564,23.79926668,241.83,241.75,23.70559206]
[1731946341441,0.09367462,241.81,241.75,23.70559206]
[1731946341652,4.1353,241.82,241.77,23.70559206]
[1731946342156,46.27192983,241.92,241.81,23.70559206]
[1731946342341,23.70559206,241.9,241.81,23.70559206]
[1731946342537,23.70559206,241.9,241.83,23.70559206]
[1731946342864,23.70559206,241.88,241.79,23.70559206]
[1731946343051,4.1337,241.91,241.79,23.70559206]
[1731946343260,4.1337,241.91,241.83,23.70559206]
[1731946343564,0.09367462,241.88,241.81,23.70559206]
[1731946343743,0.09367462,241.86,241.77,23.70559206]
[1731946344058,0.09367462,241.84,241.77,23.70559206]
[1731946344485,0.09367462,241.84,241.79,23.70559206]
[1731946344664,0.09367462,241.86,241.79,23.70559206]
[1731946344972,23.70559206,241.91,241.83,23.70559206]
[1731946345157,4.1341,241.89,241.83,23.70559206]
[1731946345665,23.70559206,241.93,241.86,23.70559206]
[1731946345840,23.70559206,241.89,241.8,23.70559206]
[1731946346258,0.09367462,241.88,241.8,23.70559206]
[1731946346562,0.09367462,241.88,241.82,23.70559206]
[1731946347063,0.09367462,241.88,241.84,23.70559206]
[1731946347242,0.09367462,241.88,241.82,23.70559206]
[1731946348265,0.09367462,241.88,241.78,23.70559206]
[1731946348266,23.70559206,241.87,241.78,23.70559206]
[1731946348560,23.70559206,241.81,241.74,23.70559206]
[1731946348764,27.84119206,241.81,241.72,23.70559206]
[1731946349141,27.84119206,241.81,241.74,23.70559206]
[1731946349566,4.22797462,241.88,241.8,23.70559206]
[1731946349744,23.70559206,241.87,241.78,23.70559206]
[1731946349946,0.09367462,241.86,241.78,23.70559206]
[1731946350145,23.70559206,241.87,241.78,23.70559206]
[1731946350559,0.09367462,241.88,241.81,23.776884]
[1731946350840,0.09367462,241.86,241.7,0.25098]
[1731946351044,0.09367462,241.86,241.68,2.27568094]
[1731946351045,23.70559206,241.76,241.68,23.70559206]
[1731946351276,23.70559206,241.78,241.68,23.70559206]
[1731946351568,23.70559206,241.82,241.75,23.70559206]
[1731946351753,23.70559206,241.82,241.72,23.70559206]
[1731946351959,23.70559206,241.8,241.72,23.70559206]
[1731946352267,23.70559206,241.8,241.59,0.5]
[1731946352268,23.70559206,241.74,241.66,23.70559206]
[1731946352477,23.70559206,241.74,241.64,23.70559206]
[1731946352862,23.70559206,241.72,241.64,23.70559206]
[1731946353575,23.70559206,241.7,241.62,23.70559206]
[1731946353868,23.70559206,241.68,241.6,23.70559206]
[1731946354063,27.84329206,241.68,241.6,23.70559206]
[1731946354273,4.1377,241.68,241.6,23.70559206]
[1731946354655,27.84329206,241.68,241.6,23.70559206]
[1731946355156,23.70559206,241.68,241.6,23.70559206]
[1731946355363,4.1372,241.71,241.59,4.1392]
[1731946355364,4.1372,241.71,241.63,23.70559206]
[1731946355565,23.70559206,241.64,241.46,83.23015871]
[1731946355783,23.70559206,241.57,241.48,23.70559206]
[1731946356086,23.70559206,241.51,241.42,23.70559206]
[1731946356263,23.70559206,241.49,241.4,23.70559206]
[1731946356665,23.70559206,241.49,241.38,27.84839206]
[1731946357051,23.70559206,241.51,241.42,23.70559206]
[1731946357254,23.70559206,241.49,241.33,31.8638]
[1731946357553,23.70559206,241.51,241.43,23.70559206]
[1731946358057,23.70559206,241.51,241.41,23.70559206]
[1731946358247,23.70559206,241.49,241.41,23.70559206]
[1731946358452,23.70559206,241.49,241.39,23.70559206]
[1731946358661,23.70559206,241.45,241.37,23.70559206]
[1731946358854,23.70559206,241.41,241.33,23.70559206]
[1731946359563,23.70559206,241.43,241.33,23.70559206]
[1731946359763,23.70559206,241.43,241.35,23.70559206]
[1731946359979,27.84769206,241.43,241.35,23.70559206]
[1731946360768,23.70559206,241.41,241.33,23.70559206]
[1731946362490,30.0707,241.46,241.33,27.84909206]
[1731946362491,23.70559206,241.43,241.33,27.84909206]
[1731946363672,10.3519,241.5,241.33,27.84909206]
[1731946363673,23.70559206,241.49,241.42,23.70559206]
[1731946363870,23.70559206,241.51,241.42,23.70559206]
[1731946364064,27.84579206,241.53,241.44,23.70559206]
[1731946364880,23.70559206,241.51,241.42,23.70559206]
[1731946365375,23.70559206,241.44,241.36,23.70559206]
[1731946365883,23.70559206,241.42,241.34,23.70559206]
[1731946366088,27.84749206,241.44,241.34,23.70559206]
[1731946366277,27.84749206,241.44,241.34,27.84899206]
[1731946366461,23.70559206,241.42,241.34,23.70559206]
[1731946367866,23.70559206,241.44,241.36,23.70559206]
[1731946368072,4.1413,241.47,241.34,4.1435]
[1731946368073,23.70559206,241.46,241.38,23.70559206]
[1731946368481,4.1413,241.47,241.38,23.70559206]
[1731946368788,4.1413,241.47,241.41,23.70559206]
[1731946369683,23.70559206,241.5,241.41,23.70559206]
[1731946369890,23.70559206,241.52,241.43,23.70559206]
[1731946370988,4.1406,241.51,241.43,23.70559206]
[1731946371285,4.1406,241.51,241.43,27.84749206]
[1731946371586,23.70559206,241.54,241.47,23.70559206]
[1731946371776,23.70559206,241.56,241.47,23.70559206]
[1731946372080,23.70559206,241.54,241.47,23.70559206]
[1731946372292,23.70559206,241.52,241.45,23.70559206]
[1731946372786,23.70559206,241.54,241.45,23.70559206]
[1731946372990,4.1402,241.53,241.45,23.70559206]
[1731946373172,23.70559206,241.52,241.42,23.70559206]
[1731946373782,23.70559206,241.5,241.42,23.70559206]
[1731946374283,23.70559206,241.46,241.38,23.70559206]
[1731946375188,4.1416,241.45,241.38,23.70559206]
[1731946375389,23.70559206,241.44,241.36,27.84859206]
[1731946375584,4.1416,241.45,241.36,27.84859206]
[1731946375785,4.1416,241.45,241.36,23.70559206]
[1731946377892,4.1416,241.45,241.38,23.70559206]
[1731946378187,4.1416,241.45,241.4,23.70559206]
[1731946378588,4.1416,241.45,241.38,23.70559206]
[1731946379181,23.70559206,241.46,241.38,23.70559206]
[1731946380297,4.1413,241.47,241.38,23.70559206]
[1731946380476,23.70559206,241.5,241.42,23.70559206]
[1731946380669,23.70559206,241.52,241.44,23.70559206]
[1731946380866,10.3497,241.56,241.34,13.0471]
[1731946380867,23.70559206,241.48,241.38,23.70559206]
[1731946381094,23.70559206,241.46,241.38,23.70559206]
[1731946381480,23.70559206,241.48,241.38,23.70559206]
[1731946381796,23.70559206,241.5,241.41,23.70559206]
[1731946381975,23.70559206,241.5,241.43,23.70559206]
[1731946382288,4.1409,241.49,241.43,23.70559206]
[1731946382509,4.1399,241.55,241.48,23.70559206]
[1731946382994,23.70559206,241.54,241.46,23.70559206]
[1731946383184,23.70559206,241.47,241.39,23.70559206]
[1731946383384,23.70559206,241.54,241.46,23.70559206]
[1731946383592,4.1399,241.55,241.5,23.70559206]
[1731946384189,4.1399,241.55,241.48,23.70559206]
[1731946384501,4.1395,241.57,241.48,23.70559206]
[1731946385400,4.1393,241.59,241.52,23.70559206]
[1731946385879,23.70559206,241.58,241.5,23.70559206]
[1731946386296,4.1393,241.59,241.45,31.6651]
[1731946386297,4.1393,241.59,241.52,23.70559206]
[1731946389482,4.1393,241.59,241.4,0.5]
[1731946389684,4.1393,241.59,241.38,31.0443]
[1731946389685,23.70559206,241.45,241.38,31.0443]
[1731946390000,23.70559206,241.45,241.36,27.84869206]
[1731946390206,23.70559206,241.47,241.38,23.70559206]
[1731946390886,4.1414,241.46,241.38,23.70559206]
[1731946391607,23.70559206,241.43,241.34,23.70559206]
[1731946392180,23.70559206,241.45,241.36,23.70559206]
[1731946392980,4.1418,241.44,241.36,23.70559206]
[1731946394206,23.70559206,241.43,241.34,4.1434]
[1731946394411,23.70559206,241.43,241.34,23.70559206]
[1731946394612,23.70559206,241.41,241.32,23.70559206]
[1731946395195,23.70559206,241.39,241.3,23.70559206]
[1731946396114,4.1421,241.42,241.25,30.9276]
[1731946396115,23.70559206,241.35,241.25,30.9276]
[1731946396288,23.70559206,241.34,241.25,23.70559206]
[1731946396491,4.1437,241.33,241.25,23.70559206]
[1731946397709,22.43,241.38,241.23,23.70559206]
[1731946397710,23.70559206,241.32,241.23,23.70559206]
[1731946398004,23.70559206,241.3,241.21,23.70559206]
[1731946398897,23.70559206,241.27,241.18,23.70559206]
[1731946399312,23.70559206,241.27,241.13,31.3204]
[1731946399313,23.70559206,241.25,241.16,23.70559206]
[1731946399782,23.70559206,241.27,241.18,23.70559206]
[1731946399986,23.70559206,241.27,241.2,23.70559206]
[1731946400199,23.70559206,241.27,241.18,23.70559206]
[1731946401112,4.144,241.31,241.14,4.1469]
[1731946401113,4.1441,241.31,241.24,23.70559206]
[1731946404303,23.70559206,241.3,241.22,23.70559206]
[1731946404596,23.70559206,241.28,241.2,23.70559206]
[1731946405508,27.85029206,241.28,241.2,23.70559206]
[1731946405888,27.85029206,241.28,241.1,0.5]
[1731946405889,0.12549,241.19,241.09,2.31833665]
[1731946406092,0.12549,241.19,241.04,89.87826326]
[1731946406093,23.70559206,241.13,241.04,23.70559206]
[1731946406695,23.70559206,241.13,241.04,62.22484774]
[1731946406901,23.70559206,241.13,241.04,23.70559206]
[1731946407303,27.85289206,241.13,241.04,23.70559206]
[1731946407720,4.1473,241.13,241.04,23.70559206]
[1731946407897,27.85289206,241.13,241.04,23.70559206]
[1731946408900,27.85289206,241.13,241.06,23.70559206]
[1731946409695,27.85239206,241.15,241.06,23.70559206]
[1731946409920,4.1468,241.15,241.08,23.70559206]
[1731946410808,27.85239206,241.15,241.08,23.70559206]
[1731946411008,27.85239206,241.15,241.06,23.70559206]
[1731946411209,23.70559206,241.13,241.04,23.70559206]
[1731946411694,23.70559206,241.13,241.06,23.70559206]
[1731946411894,4.1468,241.15,241.06,23.70559206]
[1731946411895,27.85239206,241.15,241.06,23.70559206]
[1731946413100,23.70559206,241.12,241.04,27.85409206]
[1731946413505,4.1468,241.15,241.08,23.70559206]
[1731946414299,23.70559206,241.16,241.08,23.70559206]
[1731946414511,23.70559206,241.18,241.1,23.70559206]
[1731946414918,23.70559206,241.18,241.11,4.1474]
[1731946415314,27.85189206,241.18,241.11,4.1474]
[1731946415495,23.70559206,241.18,241.11,4.1474]
[1731946415698,158.4,241.29,241.11,4.1474]
[1731946415699,23.70559206,241.47,241.29,0.12549]
[1731946416002,12.3527,241.49,241.29,0.12549]
[1731946416003,12.3527,241.49,241.42,23.70559206]
[1731946416322,0.5,241.57,241.32,23.70559206]
[1731946416323,4.1401,241.54,241.46,23.70559206]
[1731946416534,27.84569206,241.54,241.44,23.70559206]
[1731946416828,27.84569206,241.54,241.32,24.20559206]
[1731946416829,4.1401,241.54,241.48,23.70559206]
[1731946417001,12.3527,241.57,241.5,23.70559206]
[1731946417199,12.3527,241.57,241.45,4.1415]
[1731946417200,4.1394,241.58,241.52,23.70559206]
[1731946417456,4.139,241.61,241.52,23.70559206]
[1731946418420,23.70559206,241.6,241.52,23.70559206]
[1731946418623,23.70559206,241.54,241.44,23.70559206]
[1731946419124,23.70559206,241.57,241.5,23.70559206]
[1731946419306,23.70559206,241.59,241.51,23.70559206]
[1731946419911,23.70559206,241.59,241.44,23.70559206]
[1731946419912,27.84459206,241.61,241.53,23.70559206]
[1731946420300,27.84409206,241.63,241.53,23.70559206]
[1731946420528,27.84409206,241.63,241.56,23.70559206]
[1731946420726,4.1382,241.65,241.58,23.70559206]
[1731946420917,4.1382,241.65,241.6,23.70559206]
[1731946421233,4.1382,241.65,241.58,23.70559206]
[1731946421905,23.70559206,241.69,241.6,23.70559206]
[1731946422528,23.70559206,241.69,241.58,23.70559206]
[1731946422529,23.70559206,241.67,241.58,23.70559206]
[1731946422733,23.70559206,241.65,241.56,23.70559206]
[1731946423325,23.70559206,241.67,241.58,23.70559206]
[1731946423624,23.70559206,241.65,241.58,23.70559206]